fUST/lending_fUST_20250724
["ID","MTS","AMOUNT","RATE_DAILY","PERIOD"]
[374508668,1753331435737,-460.0,0.00019178,2]
[374508669,1753331435746,-460.0,0.00019178,2]
[374508670,1753331435756,-460.0,0.00019178,2]
[374508671,1753331435765,-460.0,0.00019178,2]
[374508672,1753331435775,-460.0,0.00019178,2]
[374508673,1753331435784,-460.72872175,0.00019178,2]
[374508674,1753331435794,-463.48115566,0.00019178,2]
[374508675,1753331435803,-460.0,0.00019178,2]
[374508676,1753331435815,-460.95863827,0.00019178,2]
[374508677,1753331435824,-460.0,0.00019178,2]
[374508678,1753331435834,-496.9009037,0.00019178,2]
[374508679,1753331435843,-460.0,0.00019178,2]
[374508680,1753331435853,-460.0,0.00019178,2]
[374508681,1753331435862,-460.0,0.00019178,2]
[374508682,1753331435872,-475.38328672,0.00019178,2]
[374508683,1753331435882,-462.19975433,0.00019178,2]
[374508684,1753331435891,-462.0238258,0.00019178,2]
[374508685,1753331435900,-460.0,0.00019178,2]
[374508686,1753331435910,-501.35,0.00019178,2]
[374508687,1753331435919,-460.0,0.00019178,2]
[374508688,1753331435929,-460.0,0.00019178,2]
[374508689,1753331435938,-461.54502376,0.00019178,2]
[374508690,1753331435952,-460.0,0.00019178,2]
[374508691,1753331435961,-460.0,0.00019178,2]
[374508692,1753331435971,-460.0,0.00019178,2]
[374508693,1753331435980,-460.0,0.00019178,2]
[374508694,1753331435991,-460.31212752,0.00019178,2]
[374508695,1753331436000,-460.0,0.00019178,2]
[374508696,1753331436009,-460.64255534,0.00019178,2]
[374508697,1753331436019,-460.0,0.00019178,2]
[374508698,1753331436028,-460.0,0.00019178,2]
[374508699,1753331436038,-460.0,0.00019178,2]
[374508700,1753331436048,-500.0,0.00019178,2]
[374508701,1753331436057,-500.0,0.00019178,2]
[374508702,1753331436068,-500.0,0.00019178,2]
[374508703,1753331436077,-500.0,0.00019178,2]
[374508704,1753331436087,-500.0,0.00019178,2]
[374508705,1753331436096,-460.0,0.00019178,2]
[374508706,1753331436105,-266.20078983,0.00019178,2]
[374508707,1753331436115,-461.94202711,0.00019178,2]
[374508708,1753331436124,-460.0,0.00019178,2]
[374508709,1753331436133,-460.0,0.00019178,2]
[374508710,1753331436144,-460.0,0.00019178,2]
[374508711,1753331436154,-537.73,0.00019178,2]
[374508712,1753331436163,-579.88074911,0.00019178,2]
[374508713,1753331436172,-460.0,0.00019178,2]
[374508714,1753331436181,-460.0,0.00019178,2]
[374508715,1753331436191,-500.0,0.00019178,2]
[374508716,1753331436200,-500.0,0.00019178,2]
[374508717,1753331436210,-500.0,0.00019178,2]
[374508718,1753331436219,-461.14236931,0.00019178,2]
[374508719,1753331436228,-460.0,0.00019178,2]
[374508720,1753331436237,-500.0,0.00019178,2]
[374508721,1753331436247,-500.0,0.00019178,2]
[374508722,1753331436255,-500.0,0.00019178,2]
[374508723,1753331436265,-500.0,0.00019178,2]
[374508724,1753331436274,-335.12,0.00019178,2]
[374508725,1753331436283,-460.0,0.00019178,2]
[374508726,1753331436293,-2952.57,0.00019178,2]
[374508727,1753331436302,-460.0,0.00019178,2]
[374508728,1753331436311,-460.0,0.00019178,2]
[374508729,1753331436320,-546.2,0.00019178,2]
[374508730,1753331436330,-460.0,0.00019178,2]
[374508731,1753331436339,-460.0,0.00019178,2]
[374508732,1753331436348,-460.0,0.00019178,2]
[374508733,1753331436357,-460.0,0.00019178,2]
[374508734,1753331436367,-460.0,0.00019178,2]
[374508735,1753331436376,-460.0,0.00019178,2]
[374508736,1753331436386,-460.0,0.00019178,2]
[374508737,1753331436395,-460.0,0.00019178,2]
[374508738,1753331436405,-460.0,0.00019178,2]
[374508739,1753331436519,-799.52,0.00019178,2]
[374508740,1753331436528,-460.46264544,0.00019178,2]
[374508741,1753331436538,-460.0,0.00019178,2]
[374508742,1753331436547,-461.19406109,0.00019178,2]
[374508743,1753331436556,-460.0,0.00019178,2]
[374508744,1753331436566,-460.55964774,0.00019178,2]
[374508745,1753331436575,-460.0,0.00019178,2]
[374508746,1753331436584,-460.0,0.00019178,2]
[374508747,1753331436593,-462.1658816,0.00019178,2]
[374508748,1753331436603,-460.0,0.00019178,2]
[374508749,1753331436613,-460.0,0.00019178,2]
[374508750,1753331436622,-460.0,0.00019178,2]
[374508751,1753331436632,-460.0,0.00019178,2]
[374508752,1753331436642,-460.0,0.00019178,2]
[374508753,1753331436651,-460.0,0.00019178,2]
[374508754,1753331436660,-150.5391615,0.00019178,2]
[374508755,1753331436670,-494.42,0.00019178,2]
[374508756,1753331436679,-460.0,0.00019178,2]
[374508757,1753331436689,-460.0,0.00019178,2]
[374508758,1753331436699,-460.0,0.00019178,2]
[374508759,1753331436709,-460.0,0.00019178,2]
[374508760,1753331436719,-460.0,0.00019178,2]
[374508761,1753331436729,-460.0,0.00019178,2]
[374508762,1753331436738,-460.0,0.00019178,2]
[374508763,1753331436747,-460.0,0.00019178,2]
[374508764,1753331436756,-460.0,0.00019178,2]
[374508765,1753331436765,-560.86128093,0.00019178,2]
[374508766,1753331436775,-460.0,0.00019178,2]
[374508767,1753331436785,-461.05753594,0.00019178,2]
[374508768,1753331436794,-460.0,0.00019178,2]
[374508769,1753331436803,-460.0,0.00019178,2]
[374508770,1753331436814,-460.0,0.00019178,2]
[374508771,1753331436823,-462.58308559,0.00019178,2]
[374508772,1753331436833,-460.0,0.00019178,2]
[374508773,1753331436843,-754.29,0.00019178,2]
[374508774,1753331436852,-460.58987023,0.00019178,2]
[374508775,1753331436862,-460.0,0.00019178,2]
[374508776,1753331436871,-8334.09,0.00019178,2]
[374508777,1753331436881,-460.0,0.00019178,2]
[374508778,1753331436891,-2700.94,0.00019178,2]
[374508779,1753331436900,-584.13,0.00019178,2]
[374508780,1753331436909,-460.0,0.00019178,2]
[374508781,1753331436918,-460.0,0.00019178,2]
[374508782,1753331436928,-460.0,0.00019178,2]
[374508783,1753331436935,-460.0,0.00019178,2]
[374508784,1753331436945,-861.52,0.00019178,2]
[374508785,1753331436955,-460.0,0.00019178,2]
[374508786,1753331436963,-460.0,0.00019178,2]
[374508787,1753331436969,-460.0,0.00019178,2]
[374508788,1753331436976,-460.0,0.00019178,2]
[374508789,1753331436983,-460.0,0.00019178,2]
[374508790,1753331436992,-513.83,0.00019178,2]
[374508791,1753331436999,-460.0,0.00019178,2]
[374508792,1753331437008,-460.0,0.00019178,2]
[374508793,1753331437018,-49.00960825,0.00019178,2]
[374508794,1753331437162,-410.99039175,0.00019178,2]
[374508795,1753331437171,-82.53319374,0.00019178,2]
[374508796,1753331437182,-377.46680626,0.00019178,2]
[374508797,1753331437192,-460.0,0.00019178,2]
[374508798,1753331437201,-126.55358732,0.00019178,2]
[374508799,1753331437212,-333.44641268,0.00019178,2]
[374508800,1753331437221,-460.0,0.00019178,2]
[374508801,1753331437230,-327.46438607,0.00019178,2]
[374508802,1753331437242,-132.53561393,0.00019178,2]
[374508803,1753331437252,-470.50352638,0.00019178,2]
[374508804,1753331437263,-436.80647362,0.00019178,2]
[374508805,1753331437272,-156.98726845,0.00019178,2]
[374508822,1753331438267,-500.0,0.00019077,2]
[374508823,1753331438277,-500.0,0.00019077,2]
[374508824,1753331438287,-500.0,0.00019077,2]
[374508825,1753331438297,-500.0,0.00019077,2]
[374508826,1753331438308,-333.31202276,0.00019077,2]
[374508827,1753331438320,-301.98452679,0.00019077,2]
[374508828,1753331438329,-500.0,0.00019077,2]
[374508829,1753331438339,-500.0,0.00019077,2]
[374508830,1753331438349,-565.69124154,0.00019077,2]
[374508831,1753331438360,-500.0,0.00019077,2]
[374508832,1753331438371,-500.0,0.00019077,2]
[374508833,1753331438380,-500.0,0.00019077,2]
[374508834,1753331438389,-473.03373112,0.00019077,2]
[374508835,1753331438398,-500.0,0.00019077,2]
[374508836,1753331438408,-493.27049364,0.00019077,2]
[374508837,1753331438417,-500.0,0.00019077,2]
[374508838,1753331438426,-500.0,0.00019077,2]
[374508839,1753331438435,-527.57015831,0.00019077,2]
[374508840,1753331438444,-500.0,0.00019077,2]
[374508841,1753331438453,-500.0,0.00019077,2]
[374508842,1753331438463,-500.0,0.00019077,2]
[374508843,1753331438472,-500.0,0.00019077,2]
[374508844,1753331438481,-500.0,0.00019077,2]
[374508845,1753331438490,-500.0,0.00019077,2]
[374508846,1753331438499,-500.0,0.00019077,2]
[374508847,1753331438509,-500.0,0.00019077,2]
[374508848,1753331438518,-500.0,0.00019077,2]
[374508849,1753331438527,-500.0,0.00019077,2]
[374508850,1753331438537,-500.0,0.00019077,2]
[374508851,1753331438546,-245.84383544,0.00019077,2]
[374508852,1753331438555,-500.0,0.00019077,2]
[374508853,1753331438565,-500.0,0.00019077,2]
[374508854,1753331438575,-500.0,0.00019077,2]
[374508855,1753331438584,-500.0,0.00019077,2]
[374508856,1753331438595,-303.01273155,0.00019178,2]
[374508857,1753331438605,-1735.3,0.00019178,2]
[374508858,1753331438616,-460.0,0.00019178,2]
[374508859,1753331438625,-461.81347459,0.00019178,2]
[374508860,1753331438634,-460.0,0.00019178,2]
[374508861,1753331438643,-460.0,0.00019178,2]
[374508862,1753331438653,-460.0,0.00019178,2]
[374508863,1753331438663,-460.0,0.00019178,2]
[374508864,1753331438673,-460.0,0.00019178,2]
[374508865,1753331438682,-460.0,0.00019178,2]
[374508866,1753331438691,-464.89812185,0.00019178,2]
[374508867,1753331438701,-460.0,0.00019178,2]
[374508868,1753331438710,-461.63866567,0.00019178,2]
[374508869,1753331438720,-460.0,0.00019178,2]
[374508870,1753331438729,-460.0,0.00019178,2]
[374508871,1753331438739,-460.0,0.00019178,2]
[374508872,1753331438748,-460.0,0.00019178,2]
[374508873,1753331438757,-1347.15,0.00019178,2]
[374508874,1753331438766,-460.0,0.00019178,2]
[374508875,1753331438775,-460.0,0.00019178,2]
[374508876,1753331438785,-532.27,0.00019178,2]
[374508877,1753331438794,-460.0,0.00019178,2]
[374508878,1753331438804,-460.0,0.00019178,2]
[374508879,1753331438813,-916.07,0.00019178,2]
[374508880,1753331438823,-460.0,0.00019178,2]
[374508881,1753331438832,-460.0,0.00019178,2]
[374508882,1753331438842,-460.0,0.00019178,2]
[374508883,1753331438851,-460.0,0.00019178,2]
[374508884,1753331438861,-460.0,0.00019178,2]
[374508885,1753331438870,-460.0,0.00019178,2]
[374508886,1753331438879,-460.0,0.00019178,2]
[374508887,1753331438888,-498.79196115,0.00019178,2]
[374508888,1753331438897,-460.0,0.00019178,2]
[374508889,1753331438907,-462.25459717,0.00019178,2]
[374508890,1753331438916,-547.98,0.00019178,2]
[374508891,1753331438925,-460.0,0.00019178,2]
[374508892,1753331438934,-1480.78,0.00019178,2]
[374508893,1753331438947,-460.0,0.00019178,2]
[374508894,1753331439167,-460.0,0.00019178,2]
[374508895,1753331439177,-460.0,0.00019178,2]
[374508896,1753331439186,-460.0,0.00019178,2]
[374508897,1753331439196,-460.0,0.00019178,2]
[374508898,1753331439205,-460.0,0.00019178,2]
[374508899,1753331439215,-463.23,0.00019178,2]
[374508900,1753331439224,-514.54804548,0.00019178,2]
[374508901,1753331439234,-460.0,0.00019178,2]
[374508902,1753331439243,-460.0,0.00019178,2]
[374508903,1753331439252,-647.7,0.00019178,2]
[374508904,1753331439261,-460.0,0.00019178,2]
[374508905,1753331439379,-460.0,0.00019178,2]
[374508906,1753331439389,-460.0,0.00019178,2]
[374508907,1753331439399,-460.0,0.00019178,2]
[374508908,1753331439408,-460.0,0.00019178,2]
[374508909,1753331439418,-463.65120844,0.00019178,2]
[374508910,1753331439427,-596.43368536,0.00019178,2]
[374508911,1753331439436,-161.42151698,0.00019178,2]
[374508912,1753331439446,-496.28,0.00019178,2]
[374508913,1753331439455,-460.0,0.00019178,2]
[374508914,1753331439464,-460.7798428,0.00019178,2]
[374508915,1753331439475,-460.0,0.00019178,2]
[374508916,1753331439484,-460.0,0.00019178,2]
[374508917,1753331439493,-460.0,0.00019178,2]
[374508918,1753331439503,-460.0,0.00019178,2]
[374508919,1753331439512,-460.0,0.00019178,2]
[374508920,1753331439522,-460.0,0.00019178,2]
[374508921,1753331439531,-1571.26,0.00019178,2]
[374508922,1753331439541,-460.0,0.00019178,2]
[374508923,1753331439550,-460.0,0.00019178,2]
[374508924,1753331439559,-460.0,0.00019178,2]
[374508925,1753331439570,-464.37755864,0.00019178,2]
[374508926,1753331439579,-2093.24,0.00019178,2]
[374508927,1753331439589,-541.99,0.00019178,2]
[374508928,1753331439598,-461.74847044,0.00019178,2]
[374508929,1753331439607,-460.0,0.00019178,2]
[374508930,1753331439617,-460.0,0.00019178,2]
[374508931,1753331439626,-685.81,0.00019178,2]
[374508932,1753331439636,-460.89099059,0.00019178,2]
[374508933,1753331439645,-460.0,0.00019178,2]
[374508934,1753331439655,-460.0,0.00019178,2]
[374508935,1753331439664,-460.0,0.00019178,2]
[374508936,1753331439674,-460.0,0.00019178,2]
[374508937,1753331439683,-813.78,0.00019178,2]
[374508938,1753331439693,-460.0,0.00019178,2]
[374508939,1753331439703,-460.0,0.00019178,2]
[374508940,1753331439712,-460.0,0.00019178,2]
[374508941,1753331439722,-460.0,0.00019178,2]
[374508942,1753331439731,-461.89340034,0.00019178,2]
[374508943,1753331439741,-5915.49,0.00019178,2]
[374508944,1753331439750,-460.0,0.00019178,2]
[374508945,1753331439759,-173.70711942,0.00019178,2]
[374508946,1753331439769,-460.0,0.00019178,2]
[374508947,1753331439778,-460.0,0.00019178,2]
[374508948,1753331439788,-460.0,0.00019178,2]
[374508949,1753331439798,-1224.11,0.00019178,2]
[374508950,1753331439807,-909.5,0.00019178,2]
[374508951,1753331439818,-668.73,0.00019178,2]
[374508954,1753331439827,-460.0,0.00019178,2]
[374508956,1753331439837,-460.0,0.00019178,2]
[374508957,1753331439847,-460.0,0.00019178,2]
[374508958,1753331439856,-460.0,0.00019178,2]
[374508959,1753331439866,-460.0,0.00019178,2]
[374508960,1753331439876,-461.55749883,0.00019178,2]
[374508962,1753331439886,-460.0,0.00019178,2]
[374508963,1753331439896,-460.0,0.00019178,2]
[374508964,1753331439905,-460.0,0.00019178,2]
[374508965,1753331439915,-460.0,0.00019178,2]
[374508966,1753331439925,-460.0,0.00019178,2]
[374508967,1753331439934,-1363.71,0.00019178,2]
[374508968,1753331439945,-460.0,0.00019178,2]
[374508969,1753331439956,-460.0,0.00019178,2]
[374508970,1753331439965,-467.25820244,0.00019178,2]
[374508971,1753331439974,-460.0,0.00019178,2]
[374508972,1753331439984,-741.54,0.00019178,2]
[374508973,1753331439994,-460.0,0.00019178,2]
[374508974,1753331440004,-460.0,0.00019178,2]
[374508975,1753331440013,-1081.58,0.00019178,2]
[374508976,1753331440024,-579.4,0.00019178,2]
[374508977,1753331440033,-460.0,0.00019178,2]
[374508978,1753331440042,-460.0,0.00019178,2]
[374508979,1753331440052,-460.0,0.00019178,2]
[374508981,1753331440061,-460.0,0.00019178,2]
[374508983,1753331440070,-460.0,0.00019178,2]
[374508984,1753331440080,-460.0,0.00019178,2]
[374508987,1753331440089,-590.13098003,0.00019178,2]
[374508988,1753331440099,-460.0,0.00019178,2]
[374508990,1753331440109,-463.54403321,0.00019178,2]
[374508993,1753331440118,-460.0,0.00019178,2]
[374508994,1753331440128,-500.0,0.00019178,2]
[374508996,1753331440137,-339.79691506,0.00019178,2]
[374508998,1753331440146,-1334.3,0.00019178,2]
[374509000,1753331440156,-460.0,0.00019178,2]
[374509002,1753331440165,-500.0,0.00019178,2]
[374509004,1753331440175,-666.0,0.00019178,2]
[374509005,1753331440184,-5000.0,0.00019178,2]
[374509006,1753331440193,-5000.0,0.00019178,2]
[374509007,1753331440203,-5000.0,0.00019178,2]
[374509008,1753331440212,-3042.1131575,0.00019178,2]
[374509009,1753331440221,-54008.0576348,0.00019178,2]
[374509010,1753331440230,-800.066119,0.00019178,2]
[374509011,1753331440241,-150.0,0.00019214,2]
[374509012,1753331440251,-151.0,0.00019329,2]
[374509013,1753331440260,-100000.0,0.00019329,2]
[374509014,1753331440270,-1012.06521262,0.00019352,2]
[374509015,1753331440280,-808.0030088,0.0001942,2]
[374509016,1753331440289,-460.0,0.00019452,2]
[374509017,1753331440299,-460.0,0.00019452,2]
[374509018,1753331440308,-462.09998759,0.00019452,2]
[374509019,1753331440319,-460.0,0.00019452,2]
[374509020,1753331440328,-460.0,0.00019452,2]
[374509021,1753331440338,-460.0,0.00019452,2]
[374509022,1753331440347,-460.0,0.00019452,2]
[374509023,1753331440357,-462.60736716,0.00019452,2]
[374509024,1753331440367,-460.0,0.00019452,2]
[374509025,1753331440376,-460.0,0.00019452,2]
[374509026,1753331440386,-460.0,0.00019452,2]
[374509027,1753331440395,-460.0,0.00019452,2]
[374509028,1753331440405,-463.74689393,0.00019452,2]
[374509029,1753331440414,-178.25556374,0.00019452,2]
[374509030,1753331440423,-460.0,0.00019452,2]
[374509031,1753331440432,-460.0,0.00019452,2]
[374509032,1753331440441,-460.0,0.00019452,2]
[374509033,1753331440451,-460.0,0.00019452,2]
[374509034,1753331440461,-460.0,0.00019452,2]
[374509035,1753331440470,-475.15615547,0.00019452,2]
[374509036,1753331440479,-460.0,0.00019452,2]
[374509037,1753331440488,-460.0,0.00019452,2]
[374509038,1753331440497,-460.0,0.00019452,2]
[374509039,1753331440507,-555.24126307,0.00019452,2]
[374509040,1753331440517,-460.0,0.00019452,2]
[374509041,1753331440526,-460.0,0.00019452,2]
[374509043,1753331440535,-493.18057486,0.00019452,2]
[374509045,1753331440545,-460.0,0.00019452,2]
[374509047,1753331440554,-460.0,0.00019452,2]
[374509049,1753331440563,-460.0,0.00019452,2]
[374509050,1753331440573,-462.31094689,0.00019452,2]
[374509053,1753331440583,-460.0,0.00019452,2]
[374509054,1753331440593,-465.07706111,0.00019452,2]
[374509056,1753331440604,-466.48912756,0.00019452,2]
[374509058,1753331440614,-460.0,0.00019452,2]
[374509060,1753331440624,-460.0,0.00019452,2]
[374509063,1753331440636,-460.0,0.00019452,2]
[374509065,1753331440646,-460.0,0.00019452,2]
[374509067,1753331440654,-460.0,0.00019452,2]
[374509069,1753331440664,-592.53242923,0.00019452,2]
[374509071,1753331440674,-460.0,0.00019452,2]
[374509073,1753331440683,-461.36015059,0.00019452,2]
[374509075,1753331440693,-448.07583492,0.00019452,2]
[374509077,1753331440702,-460.0,0.00019452,2]
[374509079,1753331440712,-461.75138255,0.00019452,2]
[374509081,1753331440721,-460.0,0.00019452,2]
[374509083,1753331440731,-460.0,0.00019452,2]
[374509085,1753331440740,-462.08853149,0.00019452,2]
[374509087,1753331440750,-460.0,0.00019452,2]
[374509089,1753331440760,-460.0,0.00019452,2]
[374509091,1753331440769,-460.0,0.00019452,2]
[374509093,1753331440779,-541.74207393,0.00019452,2]
[374509095,1753331440788,-460.0,0.00019452,2]
[374509097,1753331440798,-460.0,0.00019452,2]
[374509099,1753331440807,-460.0,0.00019452,2]
[374509101,1753331440816,-460.0,0.00019452,2]
[374509103,1753331440827,-460.0,0.00019452,2]
[374509105,1753331440836,-460.0,0.00019452,2]
[374509107,1753331440848,-464.67020839,0.00019452,2]
[374509109,1753331440859,-460.0,0.00019452,2]
[374509111,1753331440867,-384.7377572,0.00019452,2]
[374509113,1753331440877,-465.59350485,0.00019452,2]
[374509115,1753331440887,-460.0,0.00019452,2]
[374509116,1753331440897,-460.0,0.00019452,2]
[374509119,1753331440907,-472.95010136,0.00019452,2]
[374509120,1753331440918,-460.0,0.00019452,2]
[374509122,1753331440927,-460.0,0.00019452,2]
[374509124,1753331440937,-477.35374876,0.00019452,2]
[374509126,1753331440948,-460.0,0.00019452,2]
[374509128,1753331440959,-460.0,0.00019452,2]
[374509130,1753331440969,-460.0,0.00019452,2]
[374509132,1753331440978,-460.0,0.00019452,2]
[374509135,1753331440989,-460.0,0.00019452,2]
[374509136,1753331441000,-464.31063921,0.00019452,2]
[374509139,1753331441010,-151.0,0.00019452,2]
[374509141,1753331441020,-460.0,0.00019452,2]
[374509143,1753331441031,-460.0,0.00019452,2]
[374509145,1753331441040,-460.0,0.00019452,2]
[374509147,1753331441050,-460.0,0.00019452,2]
[374509148,1753331441060,-460.0,0.00019452,2]
[374509150,1753331441069,-460.0,0.00019452,2]
[374509152,1753331441079,-151.0,0.00019452,2]
[374509155,1753331441090,-460.0,0.00019452,2]
[374509157,1753331441099,-460.0,0.00019452,2]
[374509159,1753331441109,-460.0,0.00019452,2]
[374509160,1753331441118,-460.0,0.00019452,2]
[374509162,1753331441128,-223.71935207,0.00019452,2]
[374509165,1753331441137,-460.0,0.00019452,2]
[374509166,1753331441149,-336.46643566,0.00019452,2]
[374509168,1753331441160,-468.46015071,0.00019452,2]
[374509171,1753331441169,-151.0,0.00019452,2]
[374509172,1753331441179,-460.0,0.00019452,2]
[374509174,1753331441188,-460.0,0.00019452,2]
[374509177,1753331441198,-460.0,0.00019452,2]
[374509178,1753331441207,-460.0,0.00019452,2]
[374509181,1753331441217,-472.66320675,0.00019452,2]
[374509183,1753331441227,-473.11661201,0.00019452,2]
[374509185,1753331441237,-460.0,0.00019452,2]
[374509187,1753331441247,-151.0,0.00019452,2]
[374509189,1753331441256,-151.0,0.00019452,2]
[374509191,1753331441265,-460.0,0.00019452,2]
[374509193,1753331441274,-151.0,0.00019452,2]
[374509195,1753331441283,-429.75511554,0.00019452,2]
[374509196,1753331441293,-151.0,0.00019452,2]
[374509198,1753331441302,-460.0,0.00019452,2]
[374509201,1753331441312,-460.0,0.00019452,2]
[374509203,1753331441322,-151.0,0.00019452,2]
[374509205,1753331441332,-460.0,0.00019452,2]
[374509206,1753331441343,-460.0,0.00019452,2]
[374509209,1753331441353,-450.96520318,0.00019452,2]
[374509211,1753331441363,-151.764784,0.00019452,2]
[374509212,1753331441372,-608.0456839,0.00019452,2]
[374509214,1753331441382,-460.0,0.00019452,2]
[374509216,1753331441391,-151.0,0.00019452,2]
[374509218,1753331441401,-460.0,0.00019452,2]
[374509221,1753331441411,-460.0,0.00019452,2]
[374509222,1753331441421,-460.0,0.00019452,2]
[374509224,1753331441431,-460.0,0.00019452,2]
[374509226,1753331441441,-345.58323501,0.00019452,2]
[374509228,1753331441450,-460.0,0.00019452,2]
[374509230,1753331441459,-460.0,0.00019452,2]
[374509232,1753331441469,-460.0,0.00019452,2]
[374509234,1753331441478,-460.0,0.00019452,2]
[374509236,1753331441488,-460.0,0.00019452,2]
[374509238,1753331441499,-153.899278,0.00019452,2]
[374509240,1753331441508,-463.25628575,0.00019452,2]
[374509242,1753331441518,-1464.263723,0.00019452,2]
[374509244,1753331441527,-460.0,0.00019452,2]
[374509246,1753331441536,-460.0,0.00019452,2]
[374509248,1753331441547,-304.67421131,0.00019452,2]
[374509250,1753331441556,-1464.263723,0.00019452,2]
[374509252,1753331441565,-460.0,0.00019452,2]
[374509254,1753331441575,-460.0,0.00019452,2]
[374509256,1753331441584,-460.0,0.00019452,2]
[374509258,1753331441594,-151.0,0.00019452,2]
[374509260,1753331441603,-151.0,0.00019452,2]
[374509272,1753331441697,-501.35,0.00019452,2]
[374509274,1753331441717,-460.0,0.00019452,2]
[374509276,1753331441727,-460.0,0.00019452,2]
[374509278,1753331441737,-460.0,0.00019452,2]
[374509280,1753331441746,-460.0,0.00019452,2]
[374509282,1753331441756,-460.0,0.00019452,2]
[374509284,1753331441766,-460.0,0.00019452,2]
[374509286,1753331441776,-460.0,0.00019452,2]
[374509288,1753331441786,-460.0,0.00019452,2]
[374509290,1753331441795,-460.0,0.00019452,2]
[374509292,1753331441805,-537.73,0.00019452,2]
[374509294,1753331441814,-151.0,0.00019452,2]
[374509296,1753331441823,-151.0,0.00019452,2]
[374509298,1753331441832,-460.0,0.00019452,2]
[374509300,1753331441841,-460.0,0.00019452,2]
[374509302,1753331441851,-460.0,0.00019452,2]
[374509304,1753331441860,-2952.57,0.00019452,2]
[374509306,1753331441870,-460.0,0.00019452,2]
[374509308,1753331441879,-460.0,0.00019452,2]
[374509310,1753331441888,-546.2,0.00019452,2]
[374509312,1753331441897,-460.0,0.00019452,2]
[374509313,1753331441907,-464.46800842,0.00019452,2]
[374509316,1753331441917,-460.0,0.00019452,2]
[374509317,1753331441926,-463.59480773,0.00019452,2]
[374509319,1753331441935,-460.0,0.00019452,2]
[374509322,1753331441949,-460.0,0.00019452,2]
[374509324,1753331441959,-151.0,0.00019452,2]
[374509326,1753331441969,-151.0,0.00019452,2]
[374509328,1753331441980,-460.0,0.00019452,2]
[374509330,1753331441990,-460.0,0.00019452,2]
[374509332,1753331441999,-799.52,0.00019452,2]
[374509334,1753331442008,-460.0,0.00019452,2]
[374509336,1753331442018,-460.0,0.00019452,2]
[374509338,1753331442028,-460.0,0.00019452,2]
[374509340,1753331442037,-460.0,0.00019452,2]
[374509341,1753331442046,-460.0,0.00019452,2]
[374509344,1753331442056,-460.0,0.00019452,2]
[374509346,1753331442066,-460.0,0.00019452,2]
[374509348,1753331442076,-494.42,0.00019452,2]
[374509349,1753331442085,-460.0,0.00019452,2]
[374509351,1753331442095,-460.0,0.00019452,2]
[374509353,1753331442104,-302.55446385,0.00019452,2]
[374509355,1753331442114,-151.0,0.00019452,2]
[374509357,1753331442123,-460.0,0.00019452,2]
[374509359,1753331442132,-460.0,0.00019452,2]
[374509361,1753331442142,-460.0,0.00019452,2]
[374509363,1753331442152,-460.0,0.00019452,2]
[374509366,1753331442162,-460.0,0.00019452,2]